bitfinex/quotes_SOLUSD_20251024
["timestamp","ask_amount","ask_price","bid_price","bid_amount"]
[1761293699975,36.86,192.48,192.46,52.59055902]
[1761293700279,36.86,192.48,192.46,50.0]
[1761293700474,0.66,192.47,192.46,50.0]
[1761293700677,0.66,192.47,192.45,5.19614065]
[1761293701676,0.66,192.47,192.44,5.19641548]
[1761293701995,2.59055902,192.45,192.39,105.39776773]
[1761293702199,38.79055902,192.44,192.39,55.39776773]
[1761293702388,2.59055902,192.42,192.39,0.2]
[1761293702695,38.79055902,192.41,192.39,0.2]
[1761293702889,36.2,192.4,192.39,0.2]
[1761293703194,36.2,192.4,192.37,0.2]
[1761293703195,39.45055902,192.4,192.37,0.2]
[1761293703385,25.47055902,192.38,192.37,0.2]
[1761293703578,26.13055902,192.38,192.37,0.2]
[1761293704299,23.54,192.38,192.37,0.2]
[1761293704475,26.13055902,192.38,192.37,0.2]
[1761293704682,23.54,192.38,192.37,0.2]
[1761293705795,23.54,192.38,192.37,50.2]
[1761293705988,36.22,192.38,192.37,55.39831574]
[1761293706187,36.22,192.38,192.37,57.98887476]
[1761293706387,36.22,192.38,192.37,55.39831574]
[1761293706687,36.88,192.38,192.37,55.39831574]
[1761293706883,36.88,192.38,192.37,0.2]
[1761293710784,39.47055902,192.38,192.37,0.2]
[1761293711400,36.88,192.38,192.37,0.2]
[1761293712604,44.66860455,192.38,192.37,0.2]
[1761293714902,8.44860455,192.38,192.37,0.2]
[1761293715104,44.66860455,192.38,192.37,0.2]
[1761293717402,8.44860455,192.38,192.37,0.2]
[1761293717592,44.66860455,192.38,192.37,0.2]
[1761293719932,31.32860455,192.38,192.37,0.2]
[1761293720226,59.76,192.38,192.37,0.2]
[1761293721216,64.95804553,192.38,192.37,0.2]
[1761293721922,28.73804553,192.38,192.37,0.2]
[1761293722229,64.95804553,192.38,192.37,0.2]
[1761293724424,67.54860455,192.38,192.37,0.2]
[1761293725402,71.37714014,192.38,192.37,0.2]
[1761293728326,73.37714013,192.38,192.37,0.2]
[1761293728505,1.99999999,192.37,192.36,0.2]
[1761293728722,9.1390946,192.37,192.36,0.2]
[1761293728924,16.41862993,192.37,192.36,0.2]
[1761293729812,27.29510514,192.37,192.36,0.2]
[1761293734027,9.74685133,192.37,192.36,0.2]
[1761293734227,48.55741035,192.37,192.36,0.2]
[1761293735931,50.55741034,192.37,192.36,0.2]
[1761293736136,61.43388555,192.37,192.36,1e-08]
[1761293736635,1.99999999,192.35,192.28,0.2]
[1761293736944,2.59055902,192.29,192.28,0.2]
[1761293737241,38.81055902,192.29,192.28,0.2]
[1761293739212,36.22,192.29,192.28,0.2]
[1761293739407,36.94,192.29,192.28,0.2]
[1761293740722,36.22,192.29,192.28,0.2]
[1761293742943,2.59055902,192.32,192.28,0.2]
[1761293743132,22.88,192.29,192.28,0.5]
[1761293743447,22.88,192.29,192.28,3.09055902]
[1761293743622,2.59055902,192.33,192.28,3.09055902]
[1761293743623,22.88,192.31,192.28,3.09055902]
[1761293743828,22.88,192.31,192.28,0.2]
[1761293744023,36.22,192.3,192.28,0.2]
[1761293744435,36.22,192.29,192.28,0.2]
[1761293744837,23.6,192.31,192.28,0.2]
[1761293745048,36.22,192.3,192.28,0.2]
[1761293748050,36.94,192.3,192.28,0.2]
[1761293748256,42.14023016,192.3,192.28,0.2]
[1761293748549,36.22,192.29,192.28,0.2]
[1761293748964,30.6705557,192.31,192.28,0.2]
[1761293749257,36.22,192.3,192.28,0.2]
[1761293752847,30.6705557,192.31,192.28,0.2]
[1761293752848,31.3905557,192.31,192.28,0.2]
[1761293754250,28.07999668,192.31,192.28,0.2]
[1761293754450,28.79999668,192.31,192.28,0.2]
[1761293755447,31.3905557,192.31,192.28,0.2]
[1761293755945,28.07999668,192.31,192.28,0.2]
[1761293756249,2.59055902,192.3,192.28,0.2]
[1761293756838,3.31055902,192.3,192.28,0.2]
[1761293757646,0.72,192.29,192.28,0.2]
[1761293758233,5.92024591,192.3,192.28,0.2]
[1761293758442,8.51080493,192.3,192.28,0.2]
[1761293758750,7.58175447,192.3,192.28,0.2]
[1761293761552,6.86175447,192.3,192.28,0.2]
[1761293761766,0.72,192.29,192.28,0.2]
[1761293762234,7.581987,192.29,192.28,0.2]
[1761293762551,11.43792573,192.29,192.28,0.2]
[1761293763756,113.43792573,192.29,192.28,0.2]
[1761293764453,113.43792573,192.29,192.26,0.2]
[1761293764752,22.88,192.25,192.17,0.2]
[1761293764928,1.66150856,192.19,192.17,0.2]
[1761293765328,1.66150856,192.18,192.17,0.2]
[1761293766044,5.50932295,192.18,192.17,0.2]
[1761293766245,22.88,192.2,192.17,0.2]
[1761293766450,25.26150856,192.2,192.17,0.2]
[1761293767057,3.84421152,192.19,192.17,0.2]
[1761293767257,1.66150856,192.19,192.17,0.2]
[1761293767439,1.66150856,192.18,192.17,0.2]
[1761293767640,24.54150856,192.18,192.17,0.2]
[1761293767846,34.30540971,192.18,192.17,0.2]
[1761293772341,30.46496365,192.18,192.17,0.2]
[1761293774863,34.28826126,192.18,192.17,0.2]
[1761293776453,47.16473646,192.18,192.17,0.2]
[1761293777745,32.6267527,192.18,192.17,0.2]
[1761293778050,34.28826126,192.18,192.17,0.2]
[1761293778359,30.46496365,192.18,192.17,0.2]
[1761293779761,28.80345509,192.18,192.17,0.2]
[1761293779966,30.46496365,192.18,192.17,0.2]
[1761293780973,7.58481385,192.19,192.17,0.2]
[1761293781358,0.72,192.18,192.17,0.2]
[1761293782046,22.88,192.18,192.17,0.2]
[1761293782246,5.2031867,192.19,192.17,0.2]
[1761293782779,28.0831867,192.19,192.17,0.2]
[1761293783075,22.88,192.19,192.17,0.2]
[1761293784472,22.88,192.19,192.18,0.5]
[1761293785172,26.00239222,192.29,192.18,2.16150856]
[1761293785173,0.72,192.25,192.18,2.16150856]
[1761293785381,2.38150856,192.25,192.19,52.16150856]
[1761293785568,22.88,192.22,192.19,52.16150856]
[1761293785889,102.0,192.27,192.21,51.66150856]
[1761293786058,22.88,192.24,192.21,50.0]
[1761293786255,22.88,192.24,192.21,51.66150856]
[1761293786468,22.88,192.24,192.22,0.5]
[1761293786679,22.88,192.23,192.22,0.5]
[1761293788379,5.20145689,192.26,192.22,0.5]
[1761293788875,102.0,192.27,192.22,7.36387341]
[1761293789079,107.87102034,192.27,192.22,7.36387341]
[1761293789279,109.5325289,192.27,192.22,0.5]
[1761293789454,108.8625289,192.27,192.22,0.5]
[1761293789660,109.5325289,192.27,192.22,2.16150856]
[1761293790285,107.87102034,192.27,192.22,2.16150856]
[1761293791586,102.0,192.27,192.22,0.5]
[1761293791768,0.67,192.26,192.22,1.66150856]
[1761293791972,0.67,192.26,192.22,2.16150856]
[1761293792171,0.67,192.26,192.22,1.66150856]
[1761293792388,102.0,192.27,192.23,0.5]
[1761293792559,102.0,192.27,192.23,2.16150856]
[1761293792759,102.0,192.27,192.24,1.66150856]
[1761293792984,102.0,192.27,192.24,2.16150856]
[1761293793395,102.0,192.27,192.25,1.66150856]
[1761293794105,102.0,192.27,192.24,7.36333844]
[1761293796952,102.0,192.27,192.24,6.86333844]
[1761293797068,102.0,192.27,192.26,1.66150856]
[1761293797579,22.88,192.3,192.26,2.16150856]
[1761293798591,23.55,192.3,192.26,1.66150856]
[1761293798791,23.55,192.3,192.25,50.0]
[1761293798792,28.75025566,192.3,192.25,50.0]
[1761293799099,28.75025566,192.3,192.25,50.5]
[1761293800398,0.67,192.29,192.25,50.5]
[1761293800605,0.67,192.29,192.24,5.20182988]
[1761293800999,5.87052004,192.29,192.24,5.20182988]
[1761293801298,5.87052004,192.29,192.24,6.86333844]
[1761293801485,0.66,192.28,192.24,6.86333844]
[1761293802002,0.66,192.28,192.24,7.36333844]
[1761293802303,0.66,192.28,192.24,5.20182988]
[1761293803111,0.66,192.28,192.24,5.70182988]
[1761293803605,7.52231657,192.28,192.23,1.66150856]
[1761293803782,7.52231657,192.28,192.23,7.36353269]
[1761293803975,0.66,192.27,192.23,0.5]
[1761293805114,0.66,192.27,192.23,5.70202705]
[1761293805404,0.66,192.27,192.23,7.36353561]
[1761293805587,0.66,192.27,192.23,5.70202705]
[1761293805773,0.66,192.27,192.23,7.36353561]
[1761293809401,102.0,192.29,192.26,1.66150856]
[1761293809620,102.0,192.29,192.27,1.66150856]
[1761293811807,102.66,192.29,192.26,1.66150856]
[1761293812104,102.0,192.29,192.26,1.66150856]
[1761293812298,102.0,192.29,192.27,1.66150856]
[1761293813904,102.66,192.29,192.27,1.66150856]
[1761293815305,102.0,192.29,192.27,1.66150856]
[1761293815799,102.0,192.29,192.27,2.16150856]
[1761293816006,102.0,192.29,192.27,1.66150856]
[1761293816602,102.0,192.29,192.28,1.66150856]
[1761293817808,102.0,192.29,192.28,51.66150856]
[1761293818117,102.0,192.29,192.28,52.16150856]
[1761293818289,102.0,192.29,192.28,50.5]
[1761293818486,102.0,192.29,192.28,51.66150856]
[1761293818788,102.0,192.29,192.28,52.59502014]
[1761293819180,102.0,192.29,192.28,2.59502014]
[1761293820304,22.88,192.3,192.28,2.59502014]
[1761293820603,0.66,192.29,192.25,20.80965897]
[1761293820812,2.59502014,192.27,192.21,55.20260879]
[1761293821105,2.59502014,192.25,192.21,55.20260879]
[1761293821312,2.59502014,192.27,192.22,2.59502014]
[1761293821681,0.66,192.26,192.22,2.59502014]
[1761293821894,2.59502014,192.28,192.22,2.59502014]
[1761293822107,130.08024721,192.3,192.25,52.59502014]
[1761293822285,0.66,192.29,192.25,52.59502014]
[1761293822815,0.66,192.29,192.26,2.59502014]
[1761293822994,124.88,192.3,192.26,2.59502014]
[1761293823214,125.54,192.3,192.26,2.59502014]
[1761293823590,125.54,192.3,192.26,3.09502014]
[1761293824413,125.54,192.3,192.27,2.59502014]
[1761293824605,124.88,192.3,192.27,53.09502014]
[1761293824797,124.88,192.3,192.27,50.0]
[1761293825003,125.54,192.3,192.27,57.79603325]
[1761293825209,124.88,192.3,192.27,57.79603325]
[1761293825410,125.54,192.3,192.27,57.79603325]
[1761293825998,124.88,192.3,192.27,57.79603325]
[1761293826914,125.54,192.3,192.27,52.59502014]
[1761293827294,4.50733137,192.29,192.25,52.59502014]
[1761293827507,4.50733137,192.29,192.25,50.0]
[1761293827905,3.25502014,192.28,192.23,52.59502014]
[1761293828115,3.25502014,192.28,192.23,50.0]
[1761293828312,4.5098875,192.27,192.23,52.59502014]
[1761293829214,3.8498875,192.26,192.23,55.20210058]
[1761293829920,0.66,192.27,192.23,55.20210058]
[1761293830119,3.85286363,192.26,192.23,55.20210058]
[1761293830300,0.66,192.27,192.23,55.20210058]
[1761293830499,4.51507875,192.26,192.23,55.20210058]
[1761293830735,2.59502014,192.28,192.23,55.20210058]
[1761293830921,4.51497562,192.27,192.23,55.20210058]
[1761293831215,3.85497562,192.26,192.23,58.29712072]
[1761293831416,0.72,192.28,192.23,57.79712072]
[1761293831724,3.85547715,192.27,192.23,57.79712072]
[1761293832018,3.85547715,192.26,192.23,57.79712072]
[1761293832221,0.72,192.28,192.24,15.0]
[1761293832523,3.85593137,192.27,192.24,15.0]
[1761293832708,3.85593137,192.26,192.24,20.2018011]
[1761293833027,0.72,192.28,192.24,20.2018011]
[1761293833322,3.85563383,192.27,192.24,20.2018011]
[1761293833623,3.85563383,192.26,192.24,20.2018011]
[1761293833830,2.59502014,192.27,192.24,20.2018011]
[1761293834027,3.85613966,192.26,192.24,20.2018011]
[1761293834326,3.31502014,192.27,192.24,20.2018011]
[1761293834497,3.85644281,192.26,192.24,20.2018011]
[1761293834698,3.31502014,192.27,192.24,20.2018011]
[1761293834905,4.5764426,192.26,192.24,20.2018011]
[1761293835113,0.72,192.26,192.24,20.2018011]
[1761293835303,0.72,192.26,192.24,70.2018011]
[1761293836305,2.59502014,192.28,192.24,70.2018011]
[1761293836622,102.0,192.3,192.28,50.0]
[1761293836819,3.85746076,192.29,192.28,50.0]
[1761293837314,4.57746076,192.29,192.28,50.0]
[1761293837825,3.85746076,192.29,192.28,55.2007489]
[1761293838730,3.85746076,192.29,192.28,57.79576904]
[1761293839323,0.72,192.32,192.28,58.29576904]
[1761293839529,3.85817804,192.31,192.28,58.29576904]
[1761293839826,22.88,192.32,192.31,5.1999376]
[1761293840013,3.85840348,192.32,192.31,5.1999376]
[1761293840204,3.85840348,192.33,192.32,50.0]
[1761293841217,3.85840348,192.34,192.32,50.0]
[1761293841509,22.88,192.35,192.32,50.0]
[1761293841814,3.85563706,192.34,192.32,50.0]
[1761293842020,3.85563706,192.34,192.33,5.19939686]
[1761293842223,23.6,192.37,192.33,5.19939686]
[1761293842424,3.85365904,192.36,192.33,5.19939686]
[1761293842638,0.72,192.36,192.33,5.19939686]
[1761293843229,4.57186423,192.36,192.33,5.19939686]
[1761293844524,0.72,192.35,192.33,5.19939686]
[1761293846422,0.72,192.35,192.34,50.0]
[1761293846623,22.88,192.37,192.34,50.0]
[1761293846827,0.72,192.36,192.34,50.0]
[1761293847028,22.88,192.37,192.34,50.0]
[1761293847232,22.88,192.37,192.34,102.59502014]
[1761293847233,0.72,192.37,192.34,102.59502014]
[1761293847421,3.84692636,192.38,192.34,102.59502014]
[1761293847629,4.56692636,192.38,192.34,102.59502014]
[1761293848232,4.56692636,192.38,192.36,50.0]
[1761293848534,0.67,192.37,192.32,100.0]
[1761293848717,3.26502014,192.37,192.34,50.0]
[1761293849118,3.26502014,192.36,192.32,55.19956791]
[1761293849515,0.67,192.35,192.32,55.19956791]
[1761293860157,3.26502014,192.35,192.32,55.19956791]
[1761293860741,0.67,192.35,192.32,55.19956791]
[1761293863861,22.88,192.37,192.34,50.0]
[1761293864030,22.88,192.37,192.35,2.59502014]
[1761293864231,22.88,192.37,192.34,50.5]
[1761293865450,22.88,192.37,192.35,5.19885625]
[1761293865964,22.88,192.37,192.35,5.69885625]
[1761293866560,22.88,192.37,192.35,5.19885625]
[1761293868564,3.25502014,192.39,192.35,5.19885625]
[1761293868743,12.99153585,192.44,192.37,50.0]
[1761293868939,2.59502014,192.42,192.37,50.0]
[1761293869160,3.84149358,192.41,192.37,50.0]
[1761293869365,4.50149358,192.41,192.37,50.0]
[1761293869744,0.66,192.4,192.37,50.0]
[1761293870764,0.66,192.4,192.37,55.19828697]
[1761293871972,3.25502014,192.4,192.37,5.19828697]
[1761293872266,3.84092549,192.39,192.32,50.0]
[1761293872563,3.84092549,192.39,192.36,50.0]
[1761293872769,0.66,192.4,192.36,50.0]
[1761293873768,3.84220578,192.41,192.39,50.0]
[1761293873967,3.25502014,192.45,192.4,5.19750519]
[1761293874272,3.84241441,192.44,192.41,50.0]
[1761293874574,22.88,192.42,192.41,50.0]
[1761293875078,22.88,192.42,192.4,5.19750519]
[1761293876681,22.88,192.42,192.39,105.19773756]
[1761293877763,0.1,192.46,192.43,50.0]
[1761293878174,0.76,192.46,192.43,50.0]
[1761293878866,0.1,192.46,192.43,50.0]
[1761293879184,0.1,192.46,192.43,55.19660503]
[1761293879979,0.76,192.46,192.43,55.19660503]
[1761293880165,0.1,192.46,192.43,55.19660503]
[1761293880562,0.76,192.46,192.43,55.19660503]
[1761293882069,0.1,192.46,192.45,101.65841074]
[1761293882273,0.1,192.46,192.45,112.53488595]
[1761293882462,0.1,192.46,192.45,113.03488595]
[1761293882779,0.76,192.46,192.44,50.0]
[1761293883374,0.1,192.46,192.44,50.0]
[1761293883970,0.1,192.46,192.44,55.19617194]
[1761293886094,0.1,192.46,192.44,56.85458268]
[1761293887568,0.1,192.46,192.45,63.03488595]
[1761293888990,0.1,192.46,192.45,68.23104079]
[1761293891087,1e-08,192.46,192.45,68.75065627]
[1761293892088,1e-08,192.46,192.45,91.63065627]
[1761293893092,1e-08,192.46,192.45,68.65103798]
[1761293893385,1e-08,192.46,192.45,67.73104079]
[1761293893698,1e-08,192.46,192.45,68.23104079]
[1761293893868,1e-08,192.46,192.45,68.75065627]
[1761293894289,1e-08,192.46,192.45,68.23104079]
[1761293895396,1e-08,192.46,192.45,68.75065627]
[1761293895896,1e-08,192.46,192.45,68.23104079]
[1761293896682,1e-08,192.46,192.45,70.30977276]
[1761293899008,1e-08,192.46,192.45,70.82938824]
[1761293899599,1e-08,192.46,192.45,68.75065627]
[1761293901081,1e-08,192.46,192.45,68.23104079]
[1761293901609,1e-08,192.46,192.45,67.73104079]
[1761293902681,0.66000001,192.46,192.45,67.73104079]
[1761293902880,1e-08,192.46,192.45,66.07263005]
[1761293903082,1e-08,192.46,192.45,67.73104079]
[1761293904003,1e-08,192.46,192.45,66.07263005]
[1761293905394,0.66000001,192.46,192.45,66.07263005]
[1761293905588,1e-08,192.46,192.45,66.07263005]
[1761293906801,0.66000001,192.46,192.45,66.07263005]
[1761293909588,0.66000001,192.46,192.45,5.19615484]
[1761293910402,0.66000001,192.46,192.44,55.19641337]
[1761293914693,0.66000001,192.46,192.44,56.85482411]
[1761293915808,0.66000001,192.46,192.44,5.19641337]
[1761293916024,0.66000001,192.46,192.44,55.19641337]
[1761293916514,0.66000001,192.46,192.44,5.19641337]
[1761293917101,0.66000001,192.46,192.44,55.19641337]
[1761293918301,1e-08,192.46,192.44,56.85482411]
[1761293918497,1e-08,192.46,192.45,1.65841074]
[1761293921514,1e-08,192.46,192.45,6.85456558]
[1761293922613,0.69000001,192.46,192.45,1.65841074]
[1761293922791,0.69000001,192.46,192.44,50.0]
[1761293922992,0.69000001,192.46,192.43,55.19665564]
[1761293923299,3.85688836,192.45,192.42,5.19692722]
[1761293923699,6.20521363,192.44,192.38,50.0]
[1761293923894,0.69,192.43,192.38,51.65841074]
[1761293924616,0.69,192.43,192.39,5.1977518]
[1761293924617,4.54665713,192.43,192.39,5.1977518]
[1761293924821,3.85665713,192.42,192.39,5.1977518]
[1761293924998,4.54665713,192.42,192.39,5.1977518]
[1761293925318,0.69,192.41,192.39,5.1977518]
[1761293929929,0.69,192.41,192.38,50.0]
[1761293930232,0.69,192.41,192.38,55.19794169]
[1761293935619,0.69,192.41,192.38,56.85635243]
[1761293937615,22.88,192.44,192.4,55.19750519]
[1761293937827,0.69,192.43,192.42,50.0]
[1761293938216,0.69,192.43,192.4,56.85591593]
[1761293938832,0.69,192.43,192.4,55.19750519]
[1761293939132,0.69,192.43,192.4,50.0]
[1761293939317,0.69,192.43,192.39,1.65841074]
[1761293939523,0.69,192.43,192.38,56.8564082]
[1761293942725,0.69,192.43,192.38,57.79029571]
[1761293942930,0.69,192.43,192.39,7.78996029]
[1761293943233,5.88675325,192.43,192.38,55.19800173]
[1761293943543,5.88675325,192.43,192.38,57.79029998]
[1761293943738,0.69,192.42,192.38,57.79029998]
[1761293944535,23.57,192.44,192.41,50.0]
[1761293944839,102.69,192.45,192.43,50.0]
[1761293945228,0.69,192.44,192.43,50.0]
[1761293945836,0.69,192.44,192.41,52.59229825]
[1761293946413,0.69,192.44,192.41,57.78952914]
[1761293946923,0.69,192.44,192.4,7.78980178]
[1761293947116,4.54048954,192.44,192.41,50.0]
[1761293947317,0.69,192.44,192.41,50.0]
[1761293947531,0.69,192.44,192.41,52.59229825]
[1761293948140,0.69,192.44,192.43,50.0]
[1761293949243,102.0,192.45,192.43,50.0]
[1761293949430,102.69,192.45,192.43,50.0]
[1761293949739,0.69,192.44,192.43,50.0]
[1761293952643,102.0,192.45,192.43,50.0]
[1761293952851,1e-08,192.46,192.45,50.0]
[1761293953523,1e-08,192.46,192.45,52.59229825]
[1761293954328,1e-08,192.46,192.45,57.78845309]
[1761293955943,1e-08,192.46,192.45,68.6649283]
[1761293956147,1e-08,192.46,192.45,119.1649283]
[1761293956843,1e-08,192.46,192.45,134.75622835]
[1761293969690,1e-08,192.46,192.45,131.6639301]
[1761293969971,1e-08,192.46,192.45,118.6649283]
[1761293970171,1e-08,192.46,192.45,119.1649283]
[1761293970750,1e-08,192.46,192.45,121.24366027]
[1761293980100,1e-08,192.46,192.45,120.74366027]
[1761293980875,0.1,192.5,192.49,10.87647521]
[1761293981082,0.1,192.5,192.49,13.98828096]
[1761293981280,0.1,192.5,192.49,19.18335602]
[1761293981477,0.1,192.5,192.49,20.74204049]
[1761293981681,0.1,192.5,192.49,21.76154799]
[1761293982073,0.1,192.5,192.49,21.26154799]
[1761293982280,0.1,192.5,192.49,21.76154799]
[1761293982675,0.1,192.55,192.54,60.87647521]
[1761293982983,0.1,192.55,192.54,113.98814605]
[1761293983172,0.77,192.55,192.54,113.46877346]
[1761293983376,0.77,192.55,192.54,112.95434331]
[1761293983687,0.77,192.55,192.54,115.54664156]
[1761293984079,0.77,192.55,192.54,104.67016635]
[1761293985384,0.77,192.55,192.54,109.86389232]
[1761293989666,0.77,192.55,192.54,107.27159407]
[1761293989887,0.77,192.55,192.54,105.19372597]
[1761293990095,0.77,192.55,192.54,50.0]
[1761293990303,0.77,192.55,192.52,50.0]
[1761293990476,0.77,192.55,192.52,55.19424581]
[1761293991872,0.77,192.55,192.52,5.19424581]
[1761293992073,2.59229825,192.54,192.5,2.59229825]
[1761293992303,0.67,192.53,192.5,2.59229825]
[1761293992702,0.67,192.53,192.48,50.0]
[1761293993171,0.67,192.53,192.49,5.19505046]
[1761293994071,3.26229825,192.53,192.48,55.1953003]
[1761293994495,0.67,192.52,192.48,55.1953003]
[1761293994796,0.67,192.52,192.48,55.19527919]
[1761293995000,3.26229825,192.52,192.48,55.19527919]
[1761293995376,0.67,192.51,192.48,55.19527919]
[1761293996889,0.67,192.51,192.5,72.88]
[1761293998699,0.67,192.51,192.5,22.88]
[1761294001628,0.67,192.51,192.5,72.88]
[1761294002891,0.67,192.51,192.5,22.88]
[1761294003291,0.67,192.51,192.5,1.65734481]
[1761294003793,0.67,192.51,192.49,6.85233869]
[1761294004017,0.67,192.51,192.5,50.0]
[1761294004312,0.67,192.51,192.5,51.65734481]
[1761294005395,0.67,192.51,192.5,56.85215]
[1761294006406,0.67,192.51,192.5,51.65734481]
[1761294007423,0.67,192.51,192.5,50.0]
[1761294007730,0.67,192.51,192.48,55.19532842]
[1761294008021,0.67,192.51,192.45,1.65734481]
[1761294008326,1.65734481,192.49,192.43,6.85403971]
[1761294008621,24.53734481,192.48,192.42,56.85426468]
[1761294009024,0.67,192.47,192.42,56.85426468]
[1761294010699,0.67,192.47,192.43,1.65734481]
[1761294010936,2.32734481,192.47,192.41,1.65734481]
[1761294011320,0.69,192.46,192.41,1.65734481]
[1761294011524,0.69,192.46,192.41,6.85453198]
[1761294011901,2.34734481,192.46,192.4,1.65734481]
[1761294012313,2.34734481,192.45,192.39,1.65734481]
[1761294012521,1.65734481,192.44,192.38,106.85535742]
[1761294012719,2.34734481,192.44,192.38,105.19801261]
[1761294012910,0.69,192.43,192.38,106.85535742]
[1761294013310,0.69,192.43,192.41,50.0]
[1761294013601,0.69,192.43,192.42,1.65734481]
[1761294014005,0.69,192.43,192.41,51.65734481]
[1761294014416,0.69,192.43,192.41,56.85455615]
[1761294015024,0.69,192.43,192.42,1.65734481]
[1761294016534,0.69,192.43,192.41,56.85455615]
[1761294020034,0.69,192.43,192.38,101.65734481]
[1761294020404,1.65734481,192.42,192.36,112.53382002]
[1761294020617,1.65734481,192.41,192.36,105.19857394]
[1761294020823,28.07646413,192.44,192.36,106.85591875]
[1761294020824,2.34734481,192.42,192.36,106.85591875]
[1761294021031,1.65734481,192.42,192.36,106.85591875]
[1761294021220,0.69,192.41,192.36,106.85591875]
[1761294022617,0.69,192.41,192.38,50.0]
[1761294024346,0.69,192.41,192.37,6.8555099]
[1761294024545,0.69,192.41,192.37,1.65734481]
[1761294024749,0.69,192.41,192.37,6.85556439]
[1761294028943,125.55,192.44,192.39,51.65734481]
[1761294029330,124.88,192.44,192.39,52.15734481]
[1761294029633,124.88,192.44,192.39,50.0]
[1761294029634,0.67,192.43,192.39,50.0]
[1761294029831,0.67,192.43,192.38,1.65734481]
[1761294032420,2.32734481,192.43,192.37,56.85556439]
[1761294032742,2.32734481,192.43,192.37,55.19821958]
[1761294033046,0.67,192.42,192.37,56.85556439]
[1761294033338,2.32734481,192.42,192.37,56.85556439]
[1761294033742,0.67,192.41,192.37,56.85556439]
[1761294033944,0.67,192.41,192.37,55.19821958]
[1761294034334,0.67,192.41,192.37,56.85556439]
[1761294034537,0.67,192.43,192.39,51.65734481]
[1761294036748,0.67,192.43,192.39,50.0]
[1761294038526,2.32734481,192.43,192.39,50.0]
[1761294038734,2.32734481,192.43,192.38,5.19791549]
[1761294038927,0.67,192.42,192.38,5.19791549]
[1761294039862,124.88,192.44,192.4,51.65734481]
[1761294040059,124.88,192.44,192.42,50.0]
[1761294040228,124.88,192.44,192.4,50.0]
[1761294040429,0.67,192.43,192.4,50.0]
[1761294040740,0.67,192.43,192.4,55.19749988]
[1761294041638,0.67,192.43,192.4,56.85484469]
[1761294041926,124.88,192.44,192.4,56.85484469]
[1761294041927,124.88,192.44,192.4,57.35484469]
[1761294042431,0.67,192.43,192.4,56.85484469]
[1761294042746,125.55,192.44,192.4,56.85484469]
[1761294042939,125.55,192.44,192.41,1.65734481]
[1761294043332,125.55,192.44,192.4,56.85484469]
[1761294044724,124.88,192.44,192.41,1.65734481]
[1761294044930,124.88,192.44,192.42,50.0]
[1761294045145,125.55,192.44,192.42,50.0]
[1761294045942,0.67,192.44,192.42,51.65734481]
[1761294046960,22.88,192.45,192.42,56.8542979]
[1761294047256,1.65734481,192.52,192.45,50.0]
[1761294047466,107.19394571,192.54,192.48,51.65734481]
[1761294047467,3.85436711,192.51,192.48,51.65734481]
[1761294047633,3.85436711,192.5,192.48,51.65734481]
[1761294048633,0.67,192.49,192.45,50.0]
[1761294048936,2.32734481,192.49,192.45,50.0]
[1761294049460,4.52641458,192.48,192.44,5.19640153]
[1761294049635,4.52641458,192.48,192.43,106.85400676]
[1761294049929,0.67,192.47,192.43,106.85400676]
[1761294050353,0.67,192.47,192.44,1.65734481]
[1761294050946,0.67,192.47,192.44,6.8537263]
[1761294052355,4.52641458,192.47,192.44,6.8537263]
[1761294052559,0.67,192.47,192.44,6.8537263]